[Event "Early-Titled-Tuesday-Blitz-January-16-2024"]
[Site "Chess.com"]
[Date "2024.01.16"]
[Round "4"]
[White "IM_ArthurDW08"]
[Black "Mikayel99"]
[Result "1-0"]
[WhiteElo "2793"]
[BlackElo "2578"]
[TimeControl "180+1"]
[EndTime "8:41:31 PST"]
[Termination "IM_ArthurDW08 won by checkmate"]

1. e4 {[%clk 0:03:00.9]} 1... c5 {[%clk 0:02:57.8]} 2. Nf3 {[%clk 0:03:00.9]}
2... d6 {[%clk 0:02:57.8]} 3. d4 {[%clk 0:03:01]} 3... cxd4 {[%clk 0:02:58.7]}
4. Nxd4 {[%clk 0:03:01.9]} 4... Nf6 {[%clk 0:02:59.3]} 5. Nc3 {[%clk 0:03:02.6]}
5... a6 {[%clk 0:02:59.9]} 6. Nb3 {[%clk 0:02:43]} 6... Nc6 {[%clk 0:02:55.4]}
7. Be3 {[%clk 0:02:40.8]} 7... g6 {[%clk 0:02:55.4]} 8. f3 {[%clk 0:02:39.9]}
8... Bg7 {[%clk 0:02:55.1]} 9. Qd2 {[%clk 0:02:40.8]} 9... O-O {[%clk
0:02:54.5]} 10. O-O-O {[%clk 0:02:41.7]} 10... b5 {[%clk 0:02:45.8]} 11. Kb1
{[%clk 0:02:40.8]} 11... Be6 {[%clk 0:02:41.3]} 12. g4 {[%clk 0:02:33.4]} 12...
Nd7 {[%clk 0:02:40.4]} 13. h4 {[%clk 0:02:32.2]} 13... Nde5 {[%clk 0:02:40.6]}
14. Be2 {[%clk 0:02:12.5]} 14... Nc4 {[%clk 0:02:38.1]} 15. Bxc4 {[%clk
0:02:12.2]} 15... bxc4 {[%clk 0:02:36.3]} 16. Nd4 {[%clk 0:02:12.9]} 16... Nxd4
{[%clk 0:02:32.7]} 17. Bxd4 {[%clk 0:02:13.8]} 17... Rb8 {[%clk 0:02:32.8]} 18.
Bxg7 {[%clk 0:01:58.9]} 18... Kxg7 {[%clk 0:02:32.9]} 19. h5 {[%clk 0:01:57]}
19... Rh8 {[%clk 0:02:10]} 20. h6+ {[%clk 0:01:49.6]} 20... Kf8 {[%clk
0:02:05.3]} 21. Ka1 {[%clk 0:01:40.4]} 21... f6 {[%clk 0:02:03.8]} 22. g5 {[%clk
0:01:37.2]} 22... Kf7 {[%clk 0:01:49.7]} 23. f4 {[%clk 0:01:24.9]} 23... Qb6
{[%clk 0:01:47.4]} 24. Rb1 {[%clk 0:00:45.9]} 24... f5 {[%clk 0:01:41.3]} 25.
Rhe1 {[%clk 0:00:42.2]} 25... Rhe8 {[%clk 0:01:31.5]} 26. exf5 {[%clk
0:00:35.7]} 26... Bxf5 {[%clk 0:01:31.9]} 27. Qd5+ {[%clk 0:00:28.8]} 27... e6
{[%clk 0:01:29.3]} 28. Qxc4 {[%clk 0:00:28.9]} 28... Rec8 {[%clk 0:01:24.9]} 29.
Qa4 {[%clk 0:00:28.3]} 29... Rc7 {[%clk 0:01:13.3]} 30. Ne4 {[%clk 0:00:27.3]}
30... Bxe4 {[%clk 0:00:53.7]} 31. Qxe4 {[%clk 0:00:26.4]} 31... Re7 {[%clk
0:00:49.8]} 32. Qd3 {[%clk 0:00:22.4]} 32... Qb4 {[%clk 0:00:44.2]} 33. Re4
{[%clk 0:00:20.9]} 33... Qc5 {[%clk 0:00:41.4]} 34. Rd4 {[%clk 0:00:20.6]} 34...
e5 {[%clk 0:00:34.4]} 35. fxe5 {[%clk 0:00:19.7]} 35... dxe5 {[%clk 0:00:33.3]}
36. Rd5 {[%clk 0:00:18.7]} 36... Qb6 {[%clk 0:00:26.1]} 37. Rd6 {[%clk 0:00:18]}
37... Qb5 {[%clk 0:00:19.1]} 38. Qf3+ {[%clk 0:00:17]} 38... Kg8 {[%clk
0:00:18.4]} 39. Qf6 {[%clk 0:00:16.4]} 39... Rf7 {[%clk 0:00:16.7]} 40. Rd8+
{[%clk 0:00:08.1]} 40... Rxd8 {[%clk 0:00:16]} 41. Qxd8+ {[%clk 0:00:09]} 41...
Rf8 {[%clk 0:00:16.2]} 42. Qc7 {[%clk 0:00:08]} 42... e4 {[%clk 0:00:14.5]} 43.
Qg7# {[%clk 0:00:07.6]} 1-0

[Event "Early-Titled-Tuesday-Blitz-January-16-2024"]
[Site "Chess.com"]
[Date "2024.01.16"]
[Round "4"]
[White "brm72"]
[Black "lilleper1"]
[Result "0-1"]
[WhiteElo "2704"]
[BlackElo "2948"]
[TimeControl "180+1"]
[EndTime "8:41:35 PST"]
[Termination "lilleper1 won by resignation"]

1. e4 {[%clk 0:03:00.9]} 1... c5 {[%clk 0:02:54.3]} 2. Nf3 {[%clk 0:03:00.8]}
2... d6 {[%clk 0:02:54.2]} 3. d4 {[%clk 0:03:01]} 3... cxd4 {[%clk 0:02:54.4]}
4. Nxd4 {[%clk 0:03:01.9]} 4... Nf6 {[%clk 0:02:54.8]} 5. Nc3 {[%clk 0:03:02.4]}
5... a6 {[%clk 0:02:55.5]} 6. f3 {[%clk 0:03:03]} 6... e5 {[%clk 0:02:54.6]} 7.
Nb3 {[%clk 0:03:03.4]} 7... Be7 {[%clk 0:02:54.7]} 8. Be3 {[%clk 0:03:04.1]}
8... h5 {[%clk 0:02:53.5]} 9. Qd2 {[%clk 0:03:04.7]} 9... Be6 {[%clk 0:02:52.7]}
10. O-O-O {[%clk 0:03:05.3]} 10... Nbd7 {[%clk 0:02:52]} 11. Kb1 {[%clk
0:03:06]} 11... Qc7 {[%clk 0:02:49.3]} 12. Bd3 {[%clk 0:03:06.1]} 12... b5
{[%clk 0:02:48.8]} 13. h3 {[%clk 0:03:06.7]} 13... h4 {[%clk 0:02:48.3]} 14. f4
{[%clk 0:03:07]} 14... Rc8 {[%clk 0:02:45.5]} 15. Rhe1 {[%clk 0:03:05.9]} 15...
Nb6 {[%clk 0:02:44.1]} 16. Bxb6 {[%clk 0:02:59.9]} 16... Qxb6 {[%clk 0:02:43.7]}
17. Nd5 {[%clk 0:02:58.2]} 17... Qa7 {[%clk 0:02:20.4]} 18. Nxe7 {[%clk
0:02:04.2]} 18... Qxe7 {[%clk 0:02:17.8]} 19. f5 {[%clk 0:01:10.8]} 19... Bxb3
{[%clk 0:02:16.6]} 20. axb3 {[%clk 0:01:08.5]} 20... O-O {[%clk 0:02:14.2]} 21.
g3 {[%clk 0:01:02.3]} 21... hxg3 {[%clk 0:02:08.7]} 22. Rg1 {[%clk 0:01:01]}
22... Nh5 {[%clk 0:02:04.9]} 23. Be2 {[%clk 0:00:54.3]} 23... Nf4 {[%clk
0:02:03.9]} 24. Rxg3 {[%clk 0:00:53.2]} 24... Rc6 {[%clk 0:01:55.4]} 25. Rdg1
{[%clk 0:00:51.8]} 25... Qf6 {[%clk 0:01:55.6]} 26. Bd1 {[%clk 0:00:35.2]} 26...
Rfc8 {[%clk 0:01:50.5]} 27. h4 {[%clk 0:00:34.5]} 27... Kh8 {[%clk 0:01:24.4]}
28. h5 {[%clk 0:00:23.6]} 28... Rg8 {[%clk 0:01:17.7]} 29. Qh2 {[%clk
0:00:21.7]} 29... Qh6 {[%clk 0:01:14.3]} 30. Rh1 {[%clk 0:00:19.7]} 30... a5
{[%clk 0:01:13.4]} 31. Be2 {[%clk 0:00:15.5]} 31... Rgc8 {[%clk 0:01:10]} 32.
Bxb5 {[%clk 0:00:14.2]} 32... Rxc2 {[%clk 0:01:05.6]} 33. Qxc2 {[%clk
0:00:15.1]} 33... Rxc2 {[%clk 0:01:05.8]} 34. Kxc2 {[%clk 0:00:16]} 34... d5
{[%clk 0:01:06.4]} 35. exd5 {[%clk 0:00:15.4]} 35... Nxd5 {[%clk 0:01:07.3]} 36.
Bc4 {[%clk 0:00:14.1]} 36... Ne3+ {[%clk 0:01:02.8]} 37. Kb1 {[%clk 0:00:13]}
37... Qc6 {[%clk 0:01:00.3]} 38. Rc1 {[%clk 0:00:11.1]} 38... Nxf5 {[%clk
0:00:58.4]} 39. Rd3 {[%clk 0:00:09.8]} 39... Qe4 {[%clk 0:00:57]} 40. Ka2 {[%clk
0:00:09.1]} 40... Nd4 {[%clk 0:00:56.1]} 41. Rd2 {[%clk 0:00:07.9]} 41... Qe3
{[%clk 0:00:53.8]} 42. Rcd1 {[%clk 0:00:07.4]} 42... f5 {[%clk 0:00:53.2]} 43.
Bf7 {[%clk 0:00:07.3]} 43... f4 {[%clk 0:00:51.4]} 44. Rd3 {[%clk 0:00:06.9]}
44... Qe2 {[%clk 0:00:47.4]} 45. R1d2 {[%clk 0:00:07]} 45... Qe1 {[%clk
0:00:46.6]} 46. Bg6 {[%clk 0:00:07.4]} 46... Kg8 {[%clk 0:00:42.1]} 47. Rc3
{[%clk 0:00:07.6]} 47... Kf8 {[%clk 0:00:40.7]} 48. Rg2 {[%clk 0:00:05.9]} 48...
Ke7 {[%clk 0:00:37.7]} 49. Rg5 {[%clk 0:00:05.6]} 49... Kf6 {[%clk 0:00:36]} 50.
Rg2 {[%clk 0:00:05.7]} 50... f3 {[%clk 0:00:35.7]} 51. Rg4 {[%clk 0:00:04.3]}
51... f2 {[%clk 0:00:34.7]} 0-1

[Event "Early-Titled-Tuesday-Blitz-January-16-2024"]
[Site "Chess.com"]
[Date "2024.01.16"]
[Round "4"]
[White "sansanathalia"]
[Black "NelsonLinda"]
[Result "0-1"]
[WhiteElo "2394"]
[BlackElo "2614"]
[TimeControl "180+1"]
[EndTime "8:41:37 PST"]
[Termination "NelsonLinda won on time"]

1. e4 {[%clk 0:03:00.9]} 1... g6 {[%clk 0:02:53]} 2. d4 {[%clk 0:02:59.6]} 2...
Nf6 {[%clk 0:02:52.3]} 3. Nc3 {[%clk 0:02:58.5]} 3... d5 {[%clk 0:02:52.4]} 4.
e5 {[%clk 0:02:53.2]} 4... Ne4 {[%clk 0:02:52.3]} 5. Nxe4 {[%clk 0:02:42.3]}
5... dxe4 {[%clk 0:02:53.2]} 6. c4 {[%clk 0:02:41.8]} 6... Bg7 {[%clk
0:02:50.7]} 7. Be3 {[%clk 0:02:36.9]} 7... O-O {[%clk 0:02:50.8]} 8. Qc2 {[%clk
0:02:34.6]} 8... c5 {[%clk 0:02:50.9]} 9. Ne2 {[%clk 0:02:14.3]} 9... Nc6 {[%clk
0:02:45.3]} 10. Qd2 {[%clk 0:01:35.7]} 10... cxd4 {[%clk 0:02:43]} 11. Nxd4
{[%clk 0:01:30.2]} 11... Nxe5 {[%clk 0:02:42.4]} 12. Be2 {[%clk 0:01:29.9]}
12... Nd3+ {[%clk 0:02:25]} 13. Bxd3 {[%clk 0:01:19]} 13... exd3 {[%clk
0:02:25.9]} 14. Nb3 {[%clk 0:01:18.2]} 14... e5 {[%clk 0:02:14.8]} 15. O-O
{[%clk 0:01:14.4]} 15... f5 {[%clk 0:02:14.8]} 16. Bc5 {[%clk 0:01:08.6]} 16...
Re8 {[%clk 0:02:09]} 17. Rad1 {[%clk 0:01:01]} 17... e4 {[%clk 0:02:09]} 18.
Rfe1 {[%clk 0:00:59.8]} 18... Be6 {[%clk 0:02:08.1]} 19. Bb4 {[%clk 0:00:52.5]}
19... Bxc4 {[%clk 0:02:04.1]} 20. Na5 {[%clk 0:00:49.1]} 20... Bd5 {[%clk
0:01:58.1]} 21. Nb3 {[%clk 0:00:46.3]} 21... Rc8 {[%clk 0:01:57.1]} 22. Rc1
{[%clk 0:00:44.1]} 22... Qd7 {[%clk 0:01:49.3]} 23. Nc5 {[%clk 0:00:40.9]} 23...
Qf7 {[%clk 0:01:48.7]} 24. b3 {[%clk 0:00:39.4]} 24... Rc6 {[%clk 0:01:33.3]}
25. Na4 {[%clk 0:00:35.5]} 25... Rec8 {[%clk 0:01:32.4]} 26. Rxc6 {[%clk
0:00:30.2]} 26... Rxc6 {[%clk 0:01:33.3]} 27. Rc1 {[%clk 0:00:27.4]} 27... Qc7
{[%clk 0:01:32.5]} 28. Rxc6 {[%clk 0:00:21.1]} 28... Qxc6 {[%clk 0:01:33.4]} 29.
h3 {[%clk 0:00:20.6]} 29... Qc2 {[%clk 0:01:24.4]} 30. Qf4 {[%clk 0:00:17.3]}
30... Qc8 {[%clk 0:01:19.6]} 31. Qd6 {[%clk 0:00:16.1]} 31... Bf7 {[%clk
0:01:12.3]} 32. g3 {[%clk 0:00:13.3]} 32... b6 {[%clk 0:00:59.9]} 33. Qe7 {[%clk
0:00:09.3]} 33... Bf8 {[%clk 0:00:48.5]} 34. Qxf8+ {[%clk 0:00:04.4]} 34... Qxf8
{[%clk 0:00:49.4]} 35. Bxf8 {[%clk 0:00:04.5]} 35... Kxf8 {[%clk 0:00:50.3]} 36.
Kf1 {[%clk 0:00:04.3]} 36... Ke7 {[%clk 0:00:43.4]} 37. Ke1 {[%clk 0:00:04.7]}
37... Kd6 {[%clk 0:00:43.8]} 38. Kd2 {[%clk 0:00:05.2]} 38... Ke5 {[%clk
0:00:41.2]} 39. Nb2 {[%clk 0:00:02.3]} 39... Kd4 {[%clk 0:00:40.7]} 40. Nd1
{[%clk 0:00:02.5]} 40... g5 {[%clk 0:00:40.8]} 41. Nc3 {[%clk 0:00:02.6]} 41...
a6 {[%clk 0:00:40.8]} 42. Na4 {[%clk 0:00:02.6]} 42... b5 {[%clk 0:00:40.8]} 43.
Nc3 {[%clk 0:00:03]} 43... f4 {[%clk 0:00:40.8]} 44. gxf4 {[%clk 0:00:02.3]}
44... gxf4 {[%clk 0:00:41.7]} 45. Nd1 {[%clk 0:00:02.8]} 45... Bh5 {[%clk
0:00:41.2]} 46. Nb2 {[%clk 0:00:02]} 46... e3+ {[%clk 0:00:41.3]} 47. fxe3+
{[%clk 0:00:02.1]} 47... fxe3+ {[%clk 0:00:42.2]} 48. Kc1 {[%clk 0:00:01.7]}
48... Kc3 {[%clk 0:00:41.3]} 49. Kb1 {[%clk 0:00:01.8]} 49... e2 {[%clk
0:00:40.1]} 0-1

[Event "Early-Titled-Tuesday-Blitz-January-16-2024"]
[Site "Chess.com"]
[Date "2024.01.16"]
[Round "4"]
[White "aistrel"]
[Black "alekroth65"]
[Result "1-0"]
[WhiteElo "2556"]
[BlackElo "2359"]
[TimeControl "180+1"]
[EndTime "8:41:37 PST"]
[Termination "aistrel won on time"]

1. d4 {[%clk 0:03:00.9]} 1... d6 {[%clk 0:02:59.4]} 2. e4 {[%clk 0:02:58.6]}
2... Nf6 {[%clk 0:02:57.7]} 3. Nc3 {[%clk 0:02:59]} 3... g6 {[%clk 0:02:57.9]}
4. f4 {[%clk 0:02:59.1]} 4... Bg7 {[%clk 0:02:57.4]} 5. Nf3 {[%clk 0:02:59.2]}
5... O-O {[%clk 0:02:57.2]} 6. e5 {[%clk 0:02:59.6]} 6... Nfd7 {[%clk 0:02:56]}
7. Be3 {[%clk 0:02:58.9]} 7... c5 {[%clk 0:02:52.1]} 8. exd6 {[%clk 0:02:58.1]}
8... cxd4 {[%clk 0:02:38.3]} 9. Bxd4 {[%clk 0:02:59]} 9... Nf6 {[%clk
0:02:28.9]} 10. dxe7 {[%clk 0:02:43.5]} 10... Qxe7+ {[%clk 0:02:29.8]} 11. Qe2
{[%clk 0:02:44]} 11... Qc7 {[%clk 0:02:27.8]} 12. Be5 {[%clk 0:02:39.2]} 12...
Qa5 {[%clk 0:02:19.3]} 13. Qb5 {[%clk 0:02:34]} 13... Nc6 {[%clk 0:02:03.3]} 14.
Qxa5 {[%clk 0:02:33]} 14... Nxa5 {[%clk 0:02:02.9]} 15. O-O-O {[%clk 0:02:31]}
15... Be6 {[%clk 0:02:02.2]} 16. Nd4 {[%clk 0:02:15.4]} 16... Ng4 {[%clk
0:01:54.8]} 17. Bxg7 {[%clk 0:02:14.7]} 17... Kxg7 {[%clk 0:01:55.1]} 18. Nxe6+
{[%clk 0:02:15.2]} 18... fxe6 {[%clk 0:01:55.3]} 19. Rd7+ {[%clk 0:02:15.5]}
19... Rf7 {[%clk 0:01:54]} 20. Bb5 {[%clk 0:02:06.8]} 20... a6 {[%clk
0:01:45.7]} 21. Ba4 {[%clk 0:02:07.3]} 21... b5 {[%clk 0:01:43.3]} 22. Rxf7+
{[%clk 0:02:07.9]} 22... Kxf7 {[%clk 0:01:42.1]} 23. Bb3 {[%clk 0:02:08.8]}
23... Ne3 {[%clk 0:01:34.8]} 24. g3 {[%clk 0:01:51.1]} 24... Rd8 {[%clk
0:01:27.2]} 25. Re1 {[%clk 0:01:46.2]} 25... Nxb3+ {[%clk 0:01:25.7]} 26. axb3
{[%clk 0:01:43.9]} 26... Ng4 {[%clk 0:01:22.2]} 27. Re2 {[%clk 0:01:40.7]} 27...
Nh6 {[%clk 0:01:07]} 28. Ne4 {[%clk 0:01:39.5]} 28... Nf5 {[%clk 0:00:57.7]} 29.
Ng5+ {[%clk 0:01:39.1]} 29... Kg8 {[%clk 0:00:53.8]} 30. Nxe6 {[%clk 0:01:26.3]}
30... Rd5 {[%clk 0:00:44.6]} 31. Nc7 {[%clk 0:01:19.3]} 31... Rd6 {[%clk
0:00:32.6]} 32. Re6 {[%clk 0:01:18.4]} 32... Rd7 {[%clk 0:00:23.9]} 33. Nxa6
{[%clk 0:01:18.2]} 33... Nd4 {[%clk 0:00:20.8]} 34. Re4 {[%clk 0:01:08.3]} 34...
Nf3 {[%clk 0:00:19.6]} 35. c4 {[%clk 0:00:54.4]} 35... bxc4 {[%clk 0:00:15.6]}
36. bxc4 {[%clk 0:00:55.3]} 36... Nxh2 {[%clk 0:00:15.3]} 37. c5 {[%clk
0:00:50.4]} 37... Ng4 {[%clk 0:00:14.9]} 38. c6 {[%clk 0:00:47.8]} 38... Rd6
{[%clk 0:00:14.6]} 39. Rc4 {[%clk 0:00:46]} 39... Ne3 {[%clk 0:00:14.1]} 40. b3
{[%clk 0:00:31.3]} 40... Nxc4 {[%clk 0:00:12.2]} 41. bxc4 {[%clk 0:00:32.2]}
41... Rxc6 {[%clk 0:00:11.9]} 42. Nb8 {[%clk 0:00:32]} 42... Rxc4+ {[%clk
0:00:11.3]} 43. Kd2 {[%clk 0:00:32.9]} 43... Rc7 {[%clk 0:00:07.7]} 44. Na6
{[%clk 0:00:31.8]} 44... Rc4 {[%clk 0:00:06.9]} 45. Kd3 {[%clk 0:00:30.9]} 45...
Rc1 {[%clk 0:00:03.4]} 46. Ke4 {[%clk 0:00:27.5]} 1-0

[Event "Early-Titled-Tuesday-Blitz-January-16-2024"]
[Site "Chess.com"]
[Date "2024.01.16"]
[Round "4"]
[White "xakevicius91"]
[Black "LuminaryHunter"]
[Result "1-0"]
[WhiteElo "2526"]
[BlackElo "2268"]
[TimeControl "180+1"]
[EndTime "8:41:39 PST"]
[Termination "xakevicius91 won on time"]

1. e4 {[%clk 0:03:00.9]} 1... c5 {[%clk 0:02:58.6]} 2. Nf3 {[%clk 0:02:55.3]}
2... e6 {[%clk 0:02:58.7]} 3. b3 {[%clk 0:02:55.3]} 3... Nc6 {[%clk 0:02:57.9]}
4. Bb5 {[%clk 0:02:54.8]} 4... Qc7 {[%clk 0:02:56.3]} 5. Bb2 {[%clk 0:02:54.6]}
5... a6 {[%clk 0:02:56.2]} 6. Bxc6 {[%clk 0:02:55.1]} 6... Qxc6 {[%clk
0:02:56.3]} 7. O-O {[%clk 0:02:55.8]} 7... Qxe4 {[%clk 0:02:47.6]} 8. d4 {[%clk
0:02:55.3]} 8... cxd4 {[%clk 0:02:43.4]} 9. Nxd4 {[%clk 0:02:56.2]} 9... Nf6
{[%clk 0:02:38.7]} 10. Re1 {[%clk 0:02:56.1]} 10... Qh4 {[%clk 0:02:35.4]} 11.
Nf5 {[%clk 0:02:50.4]} 11... Qf4 {[%clk 0:02:25.1]} 12. Qd3 {[%clk 0:02:15.1]}
12... d5 {[%clk 0:01:49.7]} 13. Nd2 {[%clk 0:02:01.4]} 13... Bd7 {[%clk
0:01:22.3]} 14. Nf3 {[%clk 0:01:48.5]} 14... Bb5 {[%clk 0:01:00.6]} 15. c4
{[%clk 0:01:44.5]} 15... dxc4 {[%clk 0:00:59]} 16. bxc4 {[%clk 0:01:35.2]} 16...
Qxc4 {[%clk 0:00:41.4]} 17. Nd6+ {[%clk 0:01:20.7]} 17... Bxd6 {[%clk
0:00:41.1]} 18. Qxd6 {[%clk 0:01:21.6]} 18... Qc6 {[%clk 0:00:40.2]} 19. Qa3
{[%clk 0:01:17.4]} 19... Qd7 {[%clk 0:00:21.4]} 20. Bd4 {[%clk 0:01:12.1]} 20...
Rc8 {[%clk 0:00:19.1]} 21. Rad1 {[%clk 0:01:11.1]} 21... Qe7 {[%clk 0:00:18.9]}
22. Qa5 {[%clk 0:00:52.8]} 22... O-O {[%clk 0:00:18]} 23. a4 {[%clk 0:00:53.4]}
23... Bc6 {[%clk 0:00:17.6]} 24. Bc5 {[%clk 0:00:52.6]} 24... Qc7 {[%clk
0:00:17]} 25. Qxc7 {[%clk 0:00:52]} 25... Rxc7 {[%clk 0:00:17.2]} 26. Bxf8
{[%clk 0:00:52.6]} 26... Kxf8 {[%clk 0:00:17.6]} 27. Rc1 {[%clk 0:00:50.3]}
27... Ke7 {[%clk 0:00:17.3]} 28. Ne5 {[%clk 0:00:47.8]} 28... Nd5 {[%clk
0:00:15.3]} 29. a5 {[%clk 0:00:43.1]} 29... Kd6 {[%clk 0:00:13.2]} 30. g3 {[%clk
0:00:39.8]} 30... f6 {[%clk 0:00:12.5]} 31. Nd3 {[%clk 0:00:35.7]} 31... Bd7
{[%clk 0:00:10.7]} 32. Rxc7 {[%clk 0:00:34]} 32... Kxc7 {[%clk 0:00:08.1]} 33.
Rc1+ {[%clk 0:00:33.8]} 33... Kd6 {[%clk 0:00:08.2]} 34. Nc5 {[%clk 0:00:34]}
34... Bc6 {[%clk 0:00:08.5]} 35. Ne4+ {[%clk 0:00:31.7]} 35... Ke5 {[%clk
0:00:08.6]} 36. Nd2 {[%clk 0:00:30.9]} 36... Kd4 {[%clk 0:00:08.4]} 37. Nb3+
{[%clk 0:00:28.9]} 37... Kd3 {[%clk 0:00:07.4]} 38. Nc5+ {[%clk 0:00:28.8]}
38... Kd2 {[%clk 0:00:07.5]} 39. Rb1 {[%clk 0:00:27.2]} 39... Nc3 {[%clk
0:00:05.6]} 40. Rb2+ {[%clk 0:00:21.6]} 40... Kc1 {[%clk 0:00:05.4]} 41. Nd3+
{[%clk 0:00:19.7]} 41... Kd1 {[%clk 0:00:03.6]} 42. f4 {[%clk 0:00:17.2]} 42...
Ne2+ {[%clk 0:00:03.1]} 43. Kf2 {[%clk 0:00:17.4]} 43... Nd4 {[%clk 0:00:02.1]}
44. Nb4 {[%clk 0:00:15.2]} 1-0

[Event "Early-Titled-Tuesday-Blitz-January-16-2024"]
[Site "Chess.com"]
[Date "2024.01.16"]
[Round "4"]
[White "KNVB"]
[Black "Alimpic"]
[Result "1-0"]
[WhiteElo "2685"]
[BlackElo "2503"]
[TimeControl "180+1"]
[EndTime "8:41:41 PST"]
[Termination "KNVB won by resignation"]

1. d4 {[%clk 0:02:55.4]} 1... d5 {[%clk 0:02:58.9]} 2. Bf4 {[%clk 0:02:55.1]}
2... Nf6 {[%clk 0:02:52.5]} 3. e3 {[%clk 0:02:54.8]} 3... c5 {[%clk 0:02:52.5]}
4. c3 {[%clk 0:02:52.5]} 4... Nc6 {[%clk 0:02:52.3]} 5. Nd2 {[%clk 0:02:52.8]}
5... cxd4 {[%clk 0:02:52.7]} 6. exd4 {[%clk 0:02:53.7]} 6... Bg4 {[%clk
0:02:53.1]} 7. Qb3 {[%clk 0:02:53.3]} 7... Qc8 {[%clk 0:02:53.3]} 8. Ngf3 {[%clk
0:02:33.6]} 8... e6 {[%clk 0:02:53]} 9. Bd3 {[%clk 0:02:33.3]} 9... Be7 {[%clk
0:02:51.2]} 10. O-O {[%clk 0:02:33.1]} 10... Bh5 {[%clk 0:02:51.9]} 11. Rfe1
{[%clk 0:02:29.7]} 11... Bg6 {[%clk 0:02:51.4]} 12. Bxg6 {[%clk 0:02:28.7]}
12... hxg6 {[%clk 0:02:52.3]} 13. Ne5 {[%clk 0:02:19.2]} 13... Nxe5 {[%clk
0:02:51.4]} 14. Bxe5 {[%clk 0:02:20.1]} 14... Qc6 {[%clk 0:02:43]} 15. a4 {[%clk
0:02:19.6]} 15... Bd6 {[%clk 0:02:35.3]} 16. Nf3 {[%clk 0:01:47.1]} 16... O-O
{[%clk 0:02:26.6]} 17. g3 {[%clk 0:01:19.6]} 17... Nd7 {[%clk 0:02:23.1]} 18.
Bxd6 {[%clk 0:01:10.2]} 18... Qxd6 {[%clk 0:02:24]} 19. Kg2 {[%clk 0:01:06.1]}
19... a6 {[%clk 0:02:12.8]} 20. h4 {[%clk 0:00:58]} 20... Rab8 {[%clk 0:01:47]}
21. Rh1 {[%clk 0:00:37.8]} 21... Nf6 {[%clk 0:01:40.6]} 22. Ne5 {[%clk
0:00:30.1]} 22... b5 {[%clk 0:01:34.8]} 23. axb5 {[%clk 0:00:31]} 23... axb5
{[%clk 0:01:35.3]} 24. Nd3 {[%clk 0:00:31.1]} 24... Nd7 {[%clk 0:01:18.1]} 25.
h5 {[%clk 0:00:19.7]} 25... gxh5 {[%clk 0:01:16.6]} 26. Rxh5 {[%clk 0:00:20.6]}
26... g6 {[%clk 0:01:16.8]} 27. Rh4 {[%clk 0:00:16.9]} 27... Kg7 {[%clk
0:00:42.5]} 28. Rah1 {[%clk 0:00:16]} 28... Nf6 {[%clk 0:00:42.2]} 29. Ne5
{[%clk 0:00:04.8]} 29... b4 {[%clk 0:00:35]} 30. cxb4 {[%clk 0:00:05.3]} 30...
Qxb4 {[%clk 0:00:25.7]} 31. Qe3 {[%clk 0:00:03.7]} 31... Rh8 {[%clk 0:00:11]}
32. Rxh8 {[%clk 0:00:04]} 32... Rxh8 {[%clk 0:00:11.9]} 33. Rxh8 {[%clk
0:00:04.5]} 33... Kxh8 {[%clk 0:00:12.8]} 34. Nxf7+ {[%clk 0:00:05.3]} 34... Kg7
{[%clk 0:00:13.5]} 35. Ng5 {[%clk 0:00:05.7]} 35... Qxb2 {[%clk 0:00:11.7]} 36.
Nxe6+ {[%clk 0:00:05.9]} 36... Kg8 {[%clk 0:00:08.9]} 37. Qe5 {[%clk 0:00:03.9]}
37... Kf7 {[%clk 0:00:04.1]} 38. Ng5+ {[%clk 0:00:03.8]} 38... Kg7 {[%clk
0:00:04.8]} 39. Qe7+ {[%clk 0:00:04.2]} 39... Kh6 {[%clk 0:00:04.5]} 40. Qxf6
{[%clk 0:00:03.7]} 40... Qxf2+ {[%clk 0:00:02.2]} 41. Kxf2 {[%clk 0:00:03.7]}
1-0

[Event "Early-Titled-Tuesday-Blitz-January-16-2024"]
[Site "Chess.com"]
[Date "2024.01.16"]
[Round "4"]
[White "Smiechu"]
[Black "NovozhilovSemen"]
[Result "1-0"]
[WhiteElo "2499"]
[BlackElo "2662"]
[TimeControl "180+1"]
[EndTime "8:41:41 PST"]
[Termination "Smiechu won by checkmate"]

1. e4 {[%clk 0:02:50.4]} 1... c5 {[%clk 0:02:54.2]} 2. Nf3 {[%clk 0:02:49.8]}
2... Nc6 {[%clk 0:02:52.5]} 3. d4 {[%clk 0:02:50.2]} 3... cxd4 {[%clk
0:02:52.2]} 4. Nxd4 {[%clk 0:02:51.1]} 4... Nf6 {[%clk 0:02:52.2]} 5. Nc3 {[%clk
0:02:50.8]} 5... d6 {[%clk 0:02:52.3]} 6. Be3 {[%clk 0:02:50]} 6... Ng4 {[%clk
0:02:52]} 7. Bb5 {[%clk 0:02:49.8]} 7... Nxe3 {[%clk 0:02:39.8]} 8. fxe3 {[%clk
0:02:49.6]} 8... Bd7 {[%clk 0:02:40]} 9. Bxc6 {[%clk 0:02:49.7]} 9... bxc6
{[%clk 0:02:39.9]} 10. O-O {[%clk 0:02:50.1]} 10... e6 {[%clk 0:02:38.4]} 11. e5
{[%clk 0:02:50]} 11... dxe5 {[%clk 0:02:32.7]} 12. Qh5 {[%clk 0:02:48.7]} 12...
Qe7 {[%clk 0:02:07.6]} 13. Qxe5 {[%clk 0:02:48.4]} 13... f6 {[%clk 0:02:04.8]}
14. Qe4 {[%clk 0:02:26]} 14... Rc8 {[%clk 0:01:58.5]} 15. Rad1 {[%clk
0:02:20.7]} 15... g6 {[%clk 0:01:46.4]} 16. Qd3 {[%clk 0:02:03.6]} 16... Bg7
{[%clk 0:01:37.5]} 17. Qa6 {[%clk 0:01:46.5]} 17... O-O {[%clk 0:00:50.4]} 18.
Qxa7 {[%clk 0:01:45.9]} 18... Rfd8 {[%clk 0:00:50]} 19. Na4 {[%clk 0:01:13.6]}
19... c5 {[%clk 0:00:34.6]} 20. Nb6 {[%clk 0:01:09.4]} 20... cxd4 {[%clk
0:00:21.9]} 21. Nxc8 {[%clk 0:01:09.3]} 21... Rxc8 {[%clk 0:00:22.8]} 22. Rxd4
{[%clk 0:01:09]} 22... Rd8 {[%clk 0:00:19]} 23. Rfd1 {[%clk 0:01:08.5]} 23...
Bh6 {[%clk 0:00:19.7]} 24. Kf2 {[%clk 0:00:50]} 24... f5 {[%clk 0:00:19]} 25.
Rxd7 {[%clk 0:00:45.3]} 25... Qh4+ {[%clk 0:00:19.3]} 26. Kg1 {[%clk 0:00:40.7]}
26... Rf8 {[%clk 0:00:14.6]} 27. Qd4 {[%clk 0:00:31.2]} 27... Qh5 {[%clk
0:00:08.6]} 28. Qe5 {[%clk 0:00:29.7]} 28... Re8 {[%clk 0:00:05.8]} 29. Rd8
{[%clk 0:00:27.5]} 29... Bf8 {[%clk 0:00:02.9]} 30. R1d2 {[%clk 0:00:18.9]}
30... Rxd8 {[%clk 0:00:03.1]} 31. Qxe6+ {[%clk 0:00:16.4]} 31... Kg7 {[%clk
0:00:02.8]} 32. Qe5+ {[%clk 0:00:14.5]} 32... Kg8 {[%clk 0:00:02.2]} 33. Rxd8
{[%clk 0:00:13.7]} 33... Qe2 {[%clk 0:00:02.8]} 34. h3 {[%clk 0:00:11]} 34...
Qxc2 {[%clk 0:00:01.9]} 35. Qd5+ {[%clk 0:00:09]} 35... Kg7 {[%clk 0:00:01.5]}
36. Qd4+ {[%clk 0:00:09.1]} 36... Kh6 {[%clk 0:00:01.8]} 37. Qh4+ {[%clk
0:00:06.8]} 37... Kg7 {[%clk 0:00:01.8]} 38. Rd7+ {[%clk 0:00:07]} 38... Kg8
{[%clk 0:00:02.5]} 39. Qxh7# {[%clk 0:00:07]} 1-0